{"text_format":"1","workbook":"xlsx","n_sheets":1,"sheets":["調査票"],"not_rendered":{"charts":0,"images":0,"macros":1,"external_links":0,"defined_names":10,"comments":0,"pivot_tables":0},"unopened":[],"bounds":{"document_bytes":16777216,"sheet_cells":100000,"rows_first":2000,"rows_last":500,"rows_between":2000,"halvings":0,"cell_chars":16384,"cell_head_chars":4096},"cells_cut":0,"cells_raw":0,"read":"whole","date_system":"1900"}

{"sheet":"調査票","index":0,"n_rows":67,"n_cols":160,"rows_kept":67,"cut":false,"hidden":false,"merged":[[8,3,8,12],[7,15,7,17],[9,1,9,2],[8,13,8,14],[8,1,8,2],[8,15,8,17],[0,0,0,22],[3,0,3,22],[7,1,7,2],[7,3,7,12],[6,3,6,12],[2,0,2,22],[7,13,7,14],[6,1,6,2],[6,15,6,17],[6,13,6,14],[32,1,32,4],[19,1,19,4],[31,1,31,4],[20,1,20,4],[32,5,32,22],[22,1,30,4],[31,5,31,22],[21,1,21,4],[29,16,30,22],[18,1,18,4],[14,17,14,22],[9,5,9,12],[9,13,9,14],[15,1,15,4],[16,1,16,4],[17,1,17,4],[13,5,13,16],[13,17,13,22],[9,15,9,17],[14,5,14,10],[14,11,14,16],[9,3,9,4]]}
["長崎商工会議所　景況・経営動向調査票　－ 令和元年度 第３四半期（１０～１２月）－"]
[]
["※お答えいただいた内容は、本調査の趣旨に基づき統計的に処理いたしますので、個々の回答がプライバシーを害する形で利用・公表されることはありません。"]
["※令和２年１月３１日（金）までに、Ｅ-ｍａｉｌにてご回答をお願いいたします。"]
[]
["■太枠内（網かけ部分）にご入力ください　　（※集計の都合上、入力欄以外はロックしてあります）"]
[null,"事業所名",null,null,null,null,null,null,null,null,null,null,null,"ＴＥＬ"]
[null,"所在地",null,null,null,null,null,null,null,null,null,null,null,"ＦＡＸ"]
[null,"業種（選択）",null,null,null,null,null,null,null,null,null,null,null,"従業員数"]
[null,"記入者",null,"役 職 名",null,null,null,null,null,null,null,null,null,"氏　名"]
[]
["■以下の設問に対し、前年同期および前期と比較の上、該当欄の □ をクリックし、チェック ☑ 印をつけてください"]
[]
[null,null,null,null,null,"Ⅰ．今期（令和元年１０月～１２月）の状況",null,null,null,null,null,null,null,null,null,null,null,"Ⅱ．来期（令和２年１月～３月）の見通し"]
[null,null,null,null,null,"前年同期（平成30年10月～12月）と比較して",null,null,null,null,null,"前期（令和元年7月～9月）と比較して",null,null,null,null,null,"前年同期（平成31年1月～3月）と比較して"]
[null,"１．貴業界の景気動向\n　　（景況感）",null,null,null,null,"上　昇",null,"横ばい",null,"低　下",null,"上　昇",null,"横ばい",null,"低　下",null,"上　昇",null,"横ばい",null,"低　下"]
[null,"２．自社業況の総合判断\n　　（設問３～７を総合して）",null,null,null,null,"上　昇",null,"横ばい",null,"低　下",null,"上　昇",null,"横ばい",null,"低　下",null,"上　昇",null,"横ばい",null,"低　下"]
[null,"３．売上･生産額",null,null,null,null,"増　加",null,"横ばい",null,"減　少",null,"増　加",null,"横ばい",null,"減　少",null,"増　加",null,"横ばい",null,"減　少"]
[null,"４．利益･採算面",null,null,null,null,"好　転",null,"不　変",null,"悪　化",null,"好　転",null,"不　変",null,"悪　化",null,"好　転",null,"不　変",null,"悪　化"]
[null,"５．資金繰り",null,null,null,null,"好　転",null,"不　変",null,"悪　化",null,"好　転",null,"不　変",null,"悪　化",null,"好　転",null,"不　変",null,"悪　化"]
[null,"６．設備投資",null,null,null,null,"増　加",null,"横ばい",null,"減　少",null,"増　加",null,"横ばい",null,"減　少",null,"増　加",null,"横ばい",null,"減　少"]
[null,"７．雇用状況",null,null,null,null,"過　剰",null,"適　正",null,"不　足",null,"過　剰",null,"適　正",null,"不　足",null,"過　剰",null,"適　正",null,"不　足"]
[null,"８．当面の経営上の問題点\n　※複数回答可\n\n　最も該当するものに◎、\n　それ以外に該当する\n　ものに●を各項目の\n　左側の網かけ部分より\n　選択してください",null,null,null,null," 01.受注、販売競争の激化",null,null,null,null,null,null,null," 10.金利負担の増加"]
[null,null,null,null,null,null," 02.同業者、類似店、大型店の進出",null,null,null,null,null,null,null," 11.販売代金の回収難、不良債権の増加"]
[null,null,null,null,null,null," 03.売上額、生産額、工事高の伸び悩み",null,null,null,null,null,null,null," 12.事業資金の借入難"]
[null,null,null,null,null,null," 04.出荷、納品価格の値下げ要請",null,null,null,null,null,null,null," 13.店舗施設の老朽化など"]
[null,null,null,null,null,null," 05.営業利益の低下",null,null,null,null,null,null,null," 14.従業員の確保難"]
[null,null,null,null,null,null," 06.原材料高、入手難、販売価格への転嫁難",null,null,null,null,null,null,null," 15.需要の停滞"]
[null,null,null,null,null,null," 07.過剰在庫",null,null,null,null,null,null,null," 16.消費者ニーズの変化への対応"]
[null,null,null,null,null,null," 08.人件費の増加",null,null,null,null,null,null,null," 17.その他"]
[null,null,null,null,null,null," 09.人件費以外の経費の増加"]
[null,"９．今期における特徴的な動きが\n　　あればご入力ください。\n　　（例：原材料高、人材不足　等）"]
[null,"10．その他、貴業界または\n　　自社業況における課題が\n　　あればご入力ください"]
[]
["ご協力ありがとうございました。"]
[]
["ファイル名「R1年度 第３四半期「景況・経営動向調査」調査票＿●●」の●●を貴社（事業所）名に変更して保存いただき、E-mailにてご返信下さい。"]
["　⇒　返信先：chosa@nagasaki-cci.or.jp"]
[]
["集計結果は本所会報およびホームページ（https://nagasakicci.jp/publics/index/178/）にて公表いたします。"]
[null,null,null,null,null,null,null,null,null,null,null,null,null,null,null,null,null,null,null,null,null,null,"【本件担当】長崎商工会議所　商工振興課　ＴＥＬ ： ０９５－８２２－０１１１"]
[]
[]
[]
[]
[]
[]
[]
[]
[]
[]
[]
[]
[]
[]
[]
[]
[]
[]
[]
[]
[]
[]
[]
[null,"↓事務処理欄"]
[null,{"$f":"IF(B$67=TRUE,\"●\",\"0\")","v":"0"},{"$f":"IF(C$67=TRUE,\"●\",\"0\")","v":"0"},"0",null,"0","0","0",null,"0","0","0",null,"0","0","0",null,"0","0","0",null,"0","0","0",null,"0","0","0",null,"0","0","0",null,"0","0","0",null,"0","0","0",null,"0","0","0",null,"0","0","0",null,"0","0","0",null,"0","0","0",null,"0","0","0",null,"0","0","0",null,"0",{"$f":"IF(BO$67=TRUE,\"●\",\"0\")","v":"0"},"0",null,"0","0","0",null,"0","0","0",null,"0","0","0",null,"0","0","0",null,{"$f":"$F$23","v":0},{"$f":"$F$24","v":0},{"$f":"$F$25","v":0},{"$f":"$F$26","v":0},{"$f":"$F$27","v":0},{"$f":"$F$28","v":0},{"$f":"$F$29","v":0},{"$f":"$F$30","v":0},{"$f":"$F$31","v":0},{"$f":"$N$23","v":0},{"$f":"$N$24","v":0},{"$f":"$N$25","v":0},{"$f":"$N$26","v":0},{"$f":"$N$27","v":0},{"$f":"$N$28","v":0},{"$f":"$N$29","v":0},{"$f":"$N$30","v":0},null,null,{"$f":"$Q$30","v":0},{"$f":"$F$32","v":0},{"$f":"$F$33","v":0}]
[null,false,false,false,null,false,false,false,null,false,false,false,null,false,false,false,null,false,false,false,null,false,false,false,null,false,false,false,null,false,false,false,null,false,false,false,null,false,false,false,null,false,false,false,null,false,false,false,null,false,false,false,null,false,false,false,null,false,false,false,null,false,false,false,null,false,false,false,null,false,false,false,null,false,false,false,null,false,false,false,null,false,false,false,null,null,null,null,null,null,null,null,null,null,null,null,null,null,null,null,null,null,null,null,null,null,null,null,false,false,false,false,false,false,false,null,false,false,false,false,false,false,false,false,false,false,null,false,false,false,false,null,false,false,false,false,false,false,true,false,null,null,false,false,false,null,false,false,false,false,null,false,false,false,null,false,false,false,false,false]